Cogmind - Beta 15 @@@ ROGUE MODE // 2025.07.04 @ 11:58:26 Player: EX-OCT Result: Destroyed by Y-64 Sentinel with Wave Gun Performance ------------- Evolutions (6) 3000 Regions Visited (18) 3600 Robots Destroyed (111) 555 Value Destroyed (3881) 3881 Prototype IDs (30) 600 Alien Tech Used (0) 0 Bonus (3897) 3897 TOTAL SCORE: 15533 Bonus ------- High Alert Combat Kills 200 Follower Combat Kills 1497 Entered Garrisons 200 Network Hubs Disabled 200 Registered with UFD 300 Met Optimus in HQ 500 Met Warlord at Base 500 MAIN.C Attacked Warlord 500 Cogmind --------- Core Integrity 0/1150 Matter 195/300 Energy 158/160 System Corruption 2% Temperature Cool (15) Movement Flying (29) Location -4/Factory Parts ------- > --- POWER (1) -------- Light Nuclear Core > --- PROPULSION (6) --- Antigrav System VTOL Module VTOL Module VTOL Module > --- UTILITY (8) ------ Improved Heat Sink Improved Signal Interpreter 0b10 Decoder Chip [Skirmisher] Improved Target Analyzer > --- WEAPON (4) ------- (None) > --- INVENTORY (5) ---- A0-MCA's Component Scanner Dimensional Node Initializer Improved Remote Datajack Improved Plasma Cutter Peak State ------------ > --- POWER ------------ Quantum Reactor > --- PROPULSION ------- Centrium Heavy Treads Centrium Heavy Treads > --- UTILITY ---------- High-capacity Storage Unit Structural Scanner Active Sensor Suite Centrium Medium Armor Plating > --- WEAPON ----------- Advanced Variable Charge Gun Advanced Variable Charge Gun Advanced KE Penetrator Improved Datajack > --- INVENTORY -------- Light Angular Momentum Engine Wheel Improved Gravmag System Advanced Heat Sink Medium Storage Unit High-capacity Matter Pod Structural Scanner Improved Targeting Computer Centrium Medium Armor Plating Hacking Suite System Shield System Shield A0-MCA's Component Scanner Lightning Gun Rocket Launcher Missile Launcher Datajack Remote Datajack Mace Heavy Mace [Rating: 116] Favorites ----------- Power Quantum Reactor Engine Light Ion Engine Power Core Nuclear Core Reactor Quantum Reactor Propulsion Centrium Heavy Treads Treads Centrium Heavy Treads Leg Myomer Leg Wheel Wheel Hover Unit Antigrav System Flight Unit VTOL Module Utility Structural Scanner Device Structural Scanner Storage High-capacity Storage Unit Processor 0b10 Decoder Chip [Skirmisher] Hackware Improved Hacking Suite Protection Centrium Medium Armor Plating Weapon Advanced KE Penetrator Energy Gun Advanced Variable Charge Gun Ballistic Gun Advanced KE Penetrator Ballistic Cannon Flak Cannon Launcher Rocket Launcher Special Weapon Mining Laser Impact Weapon Mace Piercing Weapon Lance Special Melee Weapon Datajack Build | -11 -10 -10 -10 -9 -9 -6 -6 -6 -6 -6 -5 -5 -5 -5 -4 -4 -4 -4 ------- Run | Yrd Mat Min Sub Rec Scr Fac Ext Cet Arc Hub Fac Upp Upp War Pro Fac Gar Fac Slots Evolved 12 | . . . . . . 8 . . . . 2 . . . . 2 . . Power . | . . . . . . . . . . . . . . . . . . . Propulsion 4 | . . . . . . 2 . . . . . . . . . 2 . . Utility 6 | . . . . . . 4 . . . . 2 . . . . . . . Weapon 2 | . . . . . . 2 . . . . . . . . . . . . Parts Attached 117 | 5 7 5 3 11 5 14 11 14 4 1 7 7 5 2 . 6 . 10 Power 10 | . . 1 . 1 1 1 1 1 . . 1 . 1 . . 1 . 1 Engine 4 | . . 1 . 1 . . 1 . . . . . . . . 1 . . Core 4 | . . . . . 1 1 . . . . . . 1 . . . . 1 Reactor 2 | . . . . . . . . 1 . . 1 . . . . . . . Propulsion 43 | 2 4 2 1 5 . 2 7 2 . . 1 4 3 . . 5 . 5 Treads 12 | 2 . . 1 1 . 1 5 2 . . . . . . . . . . Leg 1 | . . . . . . . . . . . . . . . . . . 1 Wheel 7 | . . . . 4 . 1 2 . . . . . . . . . . . Hover 7 | . . . . . . . . . . . 1 4 1 . . . . 1 Flight 16 | . 4 2 . . . . . . . . . . 2 . . 5 . 3 Utility 30 | 1 2 1 1 3 3 2 1 4 2 1 3 3 . . . . . 3 Device 9 | 1 . 1 . 1 1 1 . 1 1 . . . . . . . . 2 Storage 2 | . . . . . 2 . . . . . . . . . . . . . Processor 7 | . 1 . . . . . . 1 . . 1 3 . . . . . 1 Hackware 4 | . . . . . . . . . 1 1 2 . . . . . . . Protection 8 | . 1 . 1 2 . 1 1 2 . . . . . . . . . . Artifact . | . . . . . . . . . . . . . . . . . . . Weapon 34 | 2 1 1 1 2 1 9 2 7 2 . 2 . 1 2 . . . 1 Energy Gun 6 | . . . . . . . . 3 1 . . . . 1 . . . 1 Energy Cannon . | . . . . . . . . . . . . . . . . . . . Ballistic Gun 14 | 2 . 1 . . . 6 . 3 1 . 1 . . . . . . . Ballistic Cannon 1 | . . . . . . 1 . . . . . . . . . . . . Launcher 2 | . . . 1 . . . 1 . . . . . . . . . . . Special Weapon 4 | . 1 . . . . . 1 1 . . . . . 1 . . . . Impact Weapon 2 | . . . . 1 . 1 . . . . . . . . . . . . Slashing Weapon . | . . . . . . . . . . . . . . . . . . . Piercing Weapon 1 | . . . . . . . . . . . . . 1 . . . . . Special Melee Weapon 4 | . . . . 1 1 1 . . . . 1 . . . . . . . Unidentified Prototypes 6 | . . . . . . . . 4 . . 1 . . 1 . . . . Parts Lost 51 | . 1 . 7 1 . 2 5 4 . 1 4 3 4 . 1 9 7 2 Power 4 | . . . 1 . . . . . . 1 . . . . . 1 1 . Propulsion 27 | . 1 . 3 . . 2 3 2 . . 2 1 4 . . 4 4 1 Utility 13 | . . . 1 1 . . 1 . . . 2 1 . . 1 3 2 1 Weapon 7 | . . . 2 . . . 1 2 . . . 1 . . . 1 . . Highest Loss Streak 8 | . 1 . 4 1 . 1 2 4 . 1 2 3 4 . 1 8 7 2 To Critical Strikes 3 | . . . . . . . 1 . . . 2 . . . . . . . Average Backups 11 | . 3 4 5 3 10 16 18 18 19 19 18 4 4 5 5 4 4 4 Power . | . . . 1 . . . . 1 2 2 . . . . . . . . Propulsion . | . . 1 . . 2 . 1 1 1 1 . . . . . . . . Utility 4 | . 1 1 1 2 3 7 9 8 8 8 6 1 1 1 1 1 1 1 Weapon 3 | . 1 2 1 . 3 3 3 5 5 6 7 2 1 1 1 . . . Tool/Special . | . . . . . . . . . . . . . . . . . . . Unused Backups 20 | . . 1 . 1 . 2 1 . 4 1 7 . . . . . . 3 Power 1 | . . . . . . . . . . . 1 . . . . . . . Propulsion . | . . . . . . . . . . . . . . . . . . . Utility 9 | . . . . 1 . . 1 . 3 . 3 . . . . . . 1 Weapon 7 | . . 1 . . . 2 . . 1 1 2 . . . . . . . Tool/Special 3 | . . . . . . . . . . . 1 . . . . . . 2 Average Slot Usage (%) 82 | . 75 89 72 91 100 82 84 82 86 85 81 47 72 76 75 39 41 32 Engine 2 | . . 3 7 11 1 . 4 1 . . . . . . . . 3 . Core 3 | . . . . . 12 6 1 . . . . . . 5 5 . . . Reactor 1 | . . . . . . . . 4 6 6 4 . . . . . . . Treads 6 | . 3 . 5 17 . 1 13 14 13 13 10 . . . . . . . Wheel 8 | . . . . 9 28 22 11 . . . . . . . . . . . Hover 1 | . . . . . . . . . . . . 5 15 5 5 1 . 3 Flight 3 | . 23 28 15 . . . . . . . . . 3 11 11 7 14 . Device 11 | . 13 23 16 2 14 12 13 18 15 13 11 8 5 5 5 1 . 6 Storage 4 | . . . . . 12 6 6 6 6 6 4 . . . . . . . Processor 4 | . 7 4 . . . . . 4 6 . 4 6 23 23 22 15 15 13 Hackware 4 | . . . . . . . . . 4 12 14 17 17 17 17 6 5 . Protection 5 | . . . 5 22 1 5 5 6 6 5 3 . . . . . . . Energy Gun 2 | . . . . . . . . 11 12 8 . . 3 . . . . . Ballistic Gun 8 | . 20 21 10 . . 18 18 10 13 13 15 3 . . . 1 3 1 Impact Weapon 4 | . . . . 12 14 5 . . . 3 4 . . . . . . . Special Melee Weapon 4 | . . . . 10 14 1 5 2 . . . 3 . . . . . . Peak Build Rating 116 | 5 6 7 8 13 20 68 69 116 111 113 116 56 65 64 56 52 39 50 Average Rating 49 | 3 5 6 7 11 14 62 65 96 110 109 107 39 58 56 55 34 28 34 On Entrance 42 | . 4 5 7 8 10 20 64 63 105 111 100 45 56 56 56 52 39 12 Naked Turns . | . . . . . . . . . . . . . . . . . . . Heaviest Build 92 | 4 6 8 22 24 51 76 79 92 92 91 89 8 12 10 10 13 13 12 Greatest Support 160 | 3 8 8 20 43 22 42 92 160 160 160 160 36 12 11 11 16 16 25 Greatest Overweight (x) 3 | 1 1 . 1 1 2 3 3 1 . . . 2 1 . . 1 . 2 Average Overweight (x) . | . . . . . 1 1 . . . . . . . . . . . . Largest Inventory Capacity 20 | 5 5 5 5 5 20 20 20 20 20 20 20 5 5 5 5 5 5 5 Average Capacity 13 | 5 5 5 5 5 16 20 20 20 20 20 19 5 5 5 5 5 5 5 Most Carried 20 | 1 5 5 5 5 20 20 20 20 20 20 20 5 5 5 5 5 5 5 Average Carried 11 | . 3 4 4 3 12 17 18 18 19 19 18 4 4 4 5 4 4 4 Final Capacity 20 | 5 5 5 5 5 20 20 20 20 20 20 5 5 5 5 5 5 5 5 Final Carried 20 | 1 5 5 5 5 20 16 20 19 20 19 4 5 5 5 5 4 5 4 Class Distribution -------------------- 25% | Commander-Mutant 23% | Scavenger-Tank 16% | Mutant 15% | Commander-Assassin 10% | Hacker-Mutant 6% | Scavenger-Mutant Dominant Class ---------------- Mutant | -10/Materials Mutant | -10/Mines Mutant | -10/Subcaves Commander-Mutant | -9/Recycling Commander-Mutant | -9/Scraptown Commander-Assassin | -6/Factory Commander-Assassin | -6/Extension Scavenger-Tank | -6/Cetus Scavenger-Tank | -6/Archives Scavenger-Tank | -6/Hub_04(d) Scavenger-Tank | -5/Factory Hacker-Mutant | -5/Upper Caves Hacker-Mutant | -5/Upper Caves Hacker-Mutant | -5/Warlord Hacker-Mutant | -4/Proximity Caves Mutant | -4/Factory Mutant | -4/Garrison Mutant | -4/Factory Resources | -11 -10 -10 -10 -9 -9 -6 -6 -6 -6 -6 -5 -5 -5 -5 -4 -4 -4 -4 ----------- Run | Yrd Mat Min Sub Rec Scr Fac Ext Cet Arc Hub Fac Upp Upp War Pro Fac Gar Fac Matter Collected 3498 | 248 93 96 69 356 60 710 692 144 88 70 340 116 235 27 10 88 . 56 Remotely . | . . . . . . . . . . . . . . . . . . . Salvage Created 4912 | 84 93 37 101 369 . 506 1156 75 417 614 639 60 107 . . 550 . 104 Parts 243 | 7 7 5 9 15 . 37 38 1 26 21 34 2 10 . . 21 . 10 Haulers Intercepted . | . . . . . . . . . . . . . . . . . . . Recyclers Shooed 10 | 1 . . . 1 . 3 1 . . . 3 . . . . 1 . . Parts Field Recycled . | . . . . . . . . . . . . . . . . . . . Retrieved Matter . | . . . . . . . . . . . . . . . . . . . Parts Self-Destructed 16 | . . . 9 . . . . . . . . . 7 . . . . . Prevented . | . . . . . . . . . . . . . . . . . . . Kills | -11 -10 -10 -10 -9 -9 -6 -6 -6 -6 -6 -5 -5 -5 -5 -4 -4 -4 -4 ------- Run | Yrd Mat Min Sub Rec Scr Fac Ext Cet Arc Hub Fac Upp Upp War Pro Fac Gar Fac Combat Hostiles Destroyed 79 | . 4 3 6 6 . 6 14 1 2 10 15 1 4 . . 4 . 3 Melee 5 | . . . . 2 . . . . . . . . . . . 3 . . Guns 63 | . 4 3 1 . . 6 12 1 2 10 15 1 4 . . 1 . 3 Cannons 1 | . . . 1 . . . . . . . . . . . . . . . AOE 6 | . . . 4 . . . 2 . . . . . . . . . . . Classes Destroyed 14 | 2 2 . 2 4 . 3 . . . 1 . . . . . . . . Worker 7 | . 1 . . . . 2 1 . . 2 1 . . . . . . . Builder 5 | . . . . 1 . 3 1 . . . . . . . . . . . Tunneler 1 | 1 . . . . . . . . . . . . . . . . . . Hauler 1 | . . . . . . 1 . . . . . . . . . . . . Recycler 7 | 1 . . . 1 . . 2 . . . . . . . . 3 . . Operator 10 | . . . . . . 2 1 . 7 . . . . . . . . . Turret 1 | . . . 1 . . . . . . . . . . . . . . . Swarmer 29 | . 4 3 4 . . . . . . . 8 . 4 . . 4 . 2 Grunt 26 | . . . . 1 . 3 11 . . 8 3 . . . . . . . Sentry 11 | . . . . 4 . . 3 . 2 . 2 . . . . . . . Specialist 2 | . . . . . . . . . . 2 . . . . . . . . Hunter 3 | . . . . 1 . 2 . . . . . . . . . . . . Programmer 5 | . . . . . . 1 . . . . 2 1 . . . . . 1 Cetus Guard 1 | . . . . . . . . 1 . . . . . . . . . . Subdweller 2 | . . . 2 . . . . . . . . . . . . . . . Best Kill Streak 9 | 1 4 2 5 4 . 9 4 1 3 6 4 1 4 . . 4 . 1 Combat Bots Only 5 | . 3 2 4 4 . 4 3 1 2 5 4 1 4 . . 2 . 1 Max Kills in Single Turn 3 | 1 2 1 3 1 . 2 2 1 2 2 2 1 1 . . 1 . 1 Gunslinging 1 | . 1 . . . . . 1 . . 1 1 . . . . . . . Exploded 3 | . . . 3 . . . 2 . . . . . . . . . . . Melee 1 | . . . . 1 . . . . . . . . . . . 1 . . Uniques/NPCs Destroyed . | . . . . . . . . . . . . . . . . . . . Combat | -11 -10 -10 -10 -9 -9 -6 -6 -6 -6 -6 -5 -5 -5 -5 -4 -4 -4 -4 -------- Run | Yrd Mat Min Sub Rec Scr Fac Ext Cet Arc Hub Fac Upp Upp War Pro Fac Gar Fac Hostile Shots Fired 827 | . 26 15 69 30 . 34 148 23 2 113 109 36 33 . 4 54 83 48 Missed 284 | . 11 6 34 4 . 11 51 8 1 38 34 11 7 . 1 12 34 21 Hits 543 | . 15 9 35 26 . 23 97 15 1 75 75 25 26 . 3 42 49 27 Projectile 543 | . 15 9 35 26 . 23 97 15 1 75 75 25 26 . 3 42 49 27 AOE 5 | . . . 2 . . . . . . . 2 . . . . . . 1 Critical Strikes 17 | . . . . . . 1 5 3 . 2 2 . . . . 1 3 . Part Disruptions 3 | . . . . . . . . . . 3 . . . . . . . . Damage Taken 9352 | . 149 69 475 324 . 368 1367 491 28 1644 1433 499 391 . 60 634 824 596 Core 2210 | . 30 18 81 14 . 63 77 25 . 126 197 264 140 . 17 354 551 253 Absorbed by Shields 220 | . . . . 27 . 48 58 . . . . . . . . . 87 . Reduced by Siege Mode 18 | . . . . . . . . . . . 18 . . . . . . . Regen/Repaired (Parts) 120 | . . . . . . 115 . . . . . . . 5 . . . . Core Remaining (%) 61 | 100 . . . . 42 . . . . 65 . . . . 38 . . . Volleys Fired 259 | 12 15 10 21 . . 30 51 8 32 19 25 9 10 1 . 7 1 8 Largest 4 | 2 2 2 2 . . 3 3 2 4 4 4 1 1 1 . 1 1 1 Hottest 230 | 40 100 40 100 . . 90 96 105 230 230 133 33 80 7 . 35 35 35 Shots Fired 565 | 24 25 20 23 . . 88 135 9 67 60 79 9 9 1 . 7 1 8 Gun 540 | 24 20 20 11 . . 88 132 5 67 60 79 9 9 . . 7 1 8 Cannon . | . . . . . . . . . . . . . . . . . . . Launcher 12 | . . . 9 . . . 3 . . . . . . . . . . . Special 13 | . 5 . 3 . . . . 4 . . . . . 1 . . . . Kinetic 455 | 24 20 20 11 . . 88 132 1 12 38 79 9 5 . . 7 1 8 Thermal 93 | . 5 . 3 . . . . 4 55 22 . . 4 . . . . . Explosive 12 | . . . 9 . . . 3 . . . . . . . . . . . Electromagnetic . | . . . . . . . . . . . . . . . . . . . Robot Hit Streak 21 | 5 3 7 7 . . 7 13 13 21 11 17 3 1 2 . 7 . 4 Robot Miss Streak 5 | 3 4 4 1 . . 4 3 . 2 3 5 1 1 . . 1 . 1 Penetration Max 2 | . . . . . . 2 1 . . 1 1 . . . . . . . Secondary Targets 16 | . 1 1 . . . 1 4 . . 4 5 . . . . . . . Max Gunslinging Chain 2 | . 1 1 . . . 1 1 . . 1 2 . . . . . . . Shots Hit Robots 434 | 14 9 12 11 50 11 51 100 9 49 37 48 5 4 1 . 18 . 5 Core Hits 187 | 4 6 5 13 4 . 21 47 2 20 21 28 1 4 . . 7 . 4 Critical Kills 13 | . . . . . . 2 1 . 3 3 1 . . . . 1 . 2 Critical Parts Destroyed 15 | . . . . 3 . 3 2 . . 3 4 . . . . . . . Critical Strikes 31 | . . . . 4 . 5 3 . 3 6 6 . . . . 2 . 2 Destroy 25 | . . . . . . 4 3 . 3 6 6 . . . . 1 . 2 Smash 5 | . . . . 4 . 1 . . . . . . . . . . . . Impale 1 | . . . . . . . . . . . . . . . . 1 . . Melee Attacks 139 | . . . . 53 11 5 31 . . 7 5 . . . 6 21 . . Impact 37 | . . . . 14 . 5 6 . . 7 5 . . . . . . . Slashing . | . . . . . . . . . . . . . . . . . . . Piercing 27 | . . . . . . . . . . . . . . . 6 21 . . Sneak Attacks 83 | . . . . 43 11 1 26 . . . . . . . . 2 . . Combat Hostiles 2 | . . . . 2 . . . . . . . . . . . . . . Follow-up Attacks . | . . . . . . . . . . . . . . . . . . . Damage Inflicted 11043 | 135 100 123 538 452 . 1318 2458 105 1445 1467 1784 149 137 . . 677 17 138 Guns 8723 | 135 100 123 89 . . 1264 1923 105 1445 1203 1745 149 137 . . 167 . 138 Cannons . | . . . . . . . . . . . . . . . . . . . Explosions 1151 | . . . 425 . . . 473 . . 253 . . . . . . . . Melee 1116 | . . . . 451 . 54 62 . . . 39 . . . . 510 . . Ramming 29 | . . . . 1 . . . . . 11 . . . . . . 17 . Kinetic 6919 | 135 100 123 89 . . 1264 1923 21 261 723 1745 149 81 . . 167 . 138 Thermal 1828 | . . . 24 . . . . 84 1184 480 . . 56 . . . . . Explosive 898 | . . . 425 . . . 473 . . . . . . . . . . . Electromagnetic 253 | . . . . . . . . . . 253 . . . . . . . . Impact 606 | . . . . 451 . 54 62 . . . 39 . . . . . . . Slashing . | . . . . . . . . . . . . . . . . . . . Piercing 510 | . . . . . . . . . . . . . . . . 510 . . Highest Corruption 4 | . . . . . . . . . . 3 2 4 4 4 . . 1 2 Average Corruption 2 | . . . . . . . . . . 2 1 2 4 4 . . 1 1 Corruption Purged . | . . . . . . . . . . . . . . . . . . . Corruption Blocked . | . . . . . . . . . . . . . . . . . . . Effects 18 | . . . . . . . . . . 4 3 4 4 1 . . . 2 Message Errors 5 | . . . . . . . . . . . . 3 1 1 . . . . Matter Fused 3 | . . . . . . . . . . 2 . . . . . . . 1 Energy Discharges 1 | . . . . . . . . . . . . . 1 . . . . . Parts Rejected 3 | . . . . . . . . . . . 1 1 1 . . . . . Parts Fused 1 | . . . . . . . . . . . . . . . . . . 1 Data Loss (minor) 2 | . . . . . . . . . . 1 1 . . . . . . . Data Loss (major) 2 | . . . . . . . . . . 1 1 . . . . . . . Weapon Failures 1 | . . . . . . . . . . . . . 1 . . . . . Overload Shots . | . . . . . . . . . . . . . . . . . . . Overflow Damage 361 | . . . 18 160 . 54 40 . . 4 . . . . . 85 . . Projectiles . | . . . . . . . . . . . . . . . . . . . Explosions 22 | . . . 18 . . . . . . 4 . . . . . . . . Melee 339 | . . . . 160 . 54 40 . . . . . . . . 85 . . Knockbacks 6 | . . . . 4 . . 1 . . 1 . . . . . . . . Impact 6 | . . . . 4 . . 1 . . 1 . . . . . . . . Kinetic . | . . . . . . . . . . . . . . . . . . . Secondary . | . . . . . . . . . . . . . . . . . . . Self-Inflicted Damage 156 | . . . 13 . . . 32 . . 103 . . . . . . 8 . Shots 4 | . . . 1 . . . 2 . . 1 . . . . . . . . Rammed 5 | . . . . 1 . . . . . 2 . . . . . . 2 . Targets Rammed 5 | . . . . 1 . . . . . 2 . . . . . . 2 . Kicked . | . . . . . . . . . . . . . . . . . . . Crushed . | . . . . . . . . . . . . . . . . . . . Highest Temperature 233 | . 8 . 2 . . 99 128 57 108 148 10 190 5 . . . 233 . Average Temperature 33 | . 5 . 1 . . 29 22 25 39 58 7 110 3 . . . 129 . Received Heat Transfer 2123 | . 30 . 168 70 . 148 580 72 . 459 204 . . . 9 . 281 102 Siege Activations 2 | . . . . . . . . . . 1 1 . . . . . . . Total Turns 17 | . . . . . . . . . . 4 13 . . . . . . . Longest Duration 13 | . . . . . . . . . . 4 13 . . . . . . . Martial Activations . | . . . . . . . . . . . . . . . . . . . Shielding Activations . | . . . . . . . . . . . . . . . . . . . Robots Disrupted . | . . . . . . . . . . . . . . . . . . . Combat Hostiles . | . . . . . . . . . . . . . . . . . . . Robots Corrupted 7 | . . . . 5 . 1 1 . . . . . . . . . . . Combat Hostiles 4 | . . . . 4 . . . . . . . . . . . . . . Parts Fried 8 | . . . . 5 . . 3 . . . . . . . . . . . Impact Corruptions 11 | . . . . 7 . 2 2 . . . . . . . . . . . Robots Melted . | . . . . . . . . . . . . . . . . . . . Combat Hostiles . | . . . . . . . . . . . . . . . . . . . Parts Melted 2 | . . . . . . . . . 2 . . . . . . . . . Heat Transferred 2418 | . . . 50 . . . . 148 1517 629 . . 74 . . . . . Parts Sabotaged . | . . . . . . . . . . . . . . . . . . . Parts Stolen . | . . . . . . . . . . . . . . . . . . . Parts Stripped . | . . . . . . . . . . . . . . . . . . . Power Chain Reactions . | . . . . . . . . . . . . . . . . . . . Alert | -11 -10 -10 -10 -9 -9 -6 -6 -6 -6 -6 -5 -5 -5 -5 -4 -4 -4 -4 ------- Run | Yrd Mat Min Sub Rec Scr Fac Ext Cet Arc Hub Fac Upp Upp War Pro Fac Gar Fac Maximum Alert Level 3 | . . . . . . 1 3 2 1 1 1 . . . . . . . Low Security (%) 67 | 100 100 100 . 100 . 89 17 . 53 69 59 . . . . 100 100 100 Level 1 17 | . . . . . . 10 30 . 46 30 40 . . . . . . . Level 2 13 | . . . . . . . 41 100 . . . . . . . . . . Level 3 1 | . . . . . . . 10 . . . . . . . . . . . Level 4 . | . . . . . . . . . . . . . . . . . . . Level 5 . | . . . . . . . . . . . . . . . . . . . High Security . | . . . . . . . . . . . . . . . . . . . Max Security . | . . . . . . . . . . . . . . . . . . . Peak Influence 982 | 5 173 77 . 80 . 275 982 633 310 349 385 . . . . 60 72 154 Initial 543 | . . 57 . 7 . . 121 543 172 14 151 . . . . 2 33 8 Average 178 | 2 81 45 . 27 . 80 435 520 185 118 209 . . . . 36 37 40 Influence Increases 5367 | 10 366 100 145 378 . 553 1621 333 197 539 520 20 105 . 15 158 54 253 Destroy 0b10 Robot/C 2280 | . 80 60 100 140 . 260 660 140 80 220 300 20 80 . . 80 . 60 Destroy 0b10 Robot/NC 170 | 10 5 . . 10 . 45 25 5 35 15 5 . . . . 15 . . Destroy Leader 280 | . 20 10 . . . 50 70 10 . 40 50 . 10 . . 10 . 10 Allied During Kill 799 | . . . . 28 . 62 587 69 31 22 . . . . . . . . Successful Hack 147 | . 16 . . 20 . 12 43 . . . 26 . . . . 4 14 12 Select Force Hacks 240 | . 60 . . 180 . . . . . . . . . . . . . . Disable Machine 165 | . . . . . . 15 . . 45 60 30 . . . . . . 15 Destroy Structure 241 | . 5 . . . . 9 36 9 6 92 64 . . . . 4 10 6 Partial Spotted 45 | . 15 . . . . . . . . . . . . . . . 15 15 Lose Combat Pursuer 600 | . 165 30 45 . . . . . . 90 45 . 15 . 15 45 15 135 Active Sensor Use 400 | . . . . . . 100 200 100 . . . . . . . . . . Influence Decreases 5243 | 10 219 200 177 388 5 304 900 873 584 273 452 271 145 86 10 115 85 146 Entered New Map 1407 | . . 90 25 8 5 . 128 427 258 29 158 141 25 86 . 3 15 9 Time Decay 2687 | 10 199 110 112 370 . 207 362 206 326 174 254 100 80 . 10 50 . 117 Lost Part 442 | . 10 . 40 10 . 20 50 40 . 10 40 30 40 . . 62 70 20 Lost Ally 407 | . 10 . . . . 77 60 200 . 60 . . . . . . . . Purge Threat 300 | . . . . . . . 300 . . . . . . . . . . . Squads Dispatched 27 | . 3 . . . . 6 5 1 . 7 3 . . . . 1 . 1 Investigation 15 | . 3 . . . . 2 3 1 . 4 1 . . . . . . 1 Extermination 2 | . . . . . . 1 . . . . 1 . . . . . . . Reinforcement 8 | . . . . . . 3 2 . . 3 . . . . . . . . Assault . | . . . . . . . . . . . . . . . . . . . Garrison 2 | . . . . . . . . . . . 1 . . . . 1 . . Intercept . | . . . . . . . . . . . . . . . . . . . Searches Triggered . | . . . . . . . . . . . . . . . . . . . Construction Impeded 3 | . . . . . . . 2 . . 1 . . . . . . . . Haulers Reinforced 1 | . . . . . . 1 . . . . . . . . . . . . Active Scanning Responses 4 | . . . . . . 1 2 1 . . . . . . . . . . Cargo Convoy Interrupts . | . . . . . . . . . . . . . . . . . . . Stealth | -11 -10 -10 -10 -9 -9 -6 -6 -6 -6 -6 -5 -5 -5 -5 -4 -4 -4 -4 --------- Run | Yrd Mat Min Sub Rec Scr Fac Ext Cet Arc Hub Fac Upp Upp War Pro Fac Gar Fac Distress Signals 6 | . 2 . . . . . . 1 . 1 . . . . . . . 2 Communications Jammed . | . . . . . . . . . . . . . . . . . . . Distress Signals . | . . . . . . . . . . . . . . . . . . . Times Spotted 217 | . 23 3 12 8 . 10 33 8 16 21 30 3 5 1 3 9 15 17 Peak Tracking Total 14 | . 6 3 6 5 . 3 5 5 2 7 8 2 4 . 3 4 14 10 Tactical Retreats 24 | . 5 1 2 . . . . . . 5 2 . 1 . 1 2 1 4 Traps | -11 -10 -10 -10 -9 -9 -6 -6 -6 -6 -6 -5 -5 -5 -5 -4 -4 -4 -4 ------- Run | Yrd Mat Min Sub Rec Scr Fac Ext Cet Arc Hub Fac Upp Upp War Pro Fac Gar Fac Traps Triggered 4 | . . . . . . . 1 . . . . 1 . . . . 2 . Indirectly . | . . . . . . . . . . . . . . . . . . . Trap Hack Attempts 3 | . . . . . . . 3 . . . . . . . . . . . Triggered . | . . . . . . . . . . . . . . . . . . . Disarmed . | . . . . . . . . . . . . . . . . . . . Reprogrammed 1 | . . . . . . . 1 . . . . . . . . . . . Reused . | . . . . . . . . . . . . . . . . . . . Traps Extracted . | . . . . . . . . . . . . . . . . . . . Installed . | . . . . . . . . . . . . . . . . . . . Triggered . | . . . . . . . . . . . . . . . . . . . Machines | -11 -10 -10 -10 -9 -9 -6 -6 -6 -6 -6 -5 -5 -5 -5 -4 -4 -4 -4 ---------- Run | Yrd Mat Min Sub Rec Scr Fac Ext Cet Arc Hub Fac Upp Upp War Pro Fac Gar Fac Machines Disabled 17 | . . . 4 . . 1 1 . 3 4 2 . 1 . . . . 1 Max in Single Turn 4 | . . . 3 . . 1 1 . 1 4 1 . 1 . . . . 1 Network Hub 1 | . . . . . . . . . . 1 . . . . . . . . Machines Repaired . | . . . . . . . . . . . . . . . . . . . Machines Dismantled . | . . . . . . . . . . . . . . . . . . . Machines Sabotaged . | . . . . . . . . . . . . . . . . . . . Overloaded Fab Kills . | . . . . . . . . . . . . . . . . . . . Hacking | -11 -10 -10 -10 -9 -9 -6 -6 -6 -6 -6 -5 -5 -5 -5 -4 -4 -4 -4 --------- Run | Yrd Mat Min Sub Rec Scr Fac Ext Cet Arc Hub Fac Upp Upp War Pro Fac Gar Fac Machines Accessed 60 | . 8 . . 12 2 5 9 . . 5 2 1 2 8 . 2 1 3 Terminals 33 | . 6 . . 6 . 3 9 . . 5 1 . . . . 1 1 1 Fabricators 2 | . . . . . . 1 . . . . 1 . . . . . . . Repair Stations 3 | . . . . . . 1 . . . . . . . . . . . 2 Recycling Units 8 | . 2 . . 6 . . . . . . . . . . . . . . Scanalyzers . | . . . . . . . . . . . . . . . . . . . Garrison Access 1 | . . . . . . . . . . . . . . . . 1 . . Total Hacks 167 | . 22 . . 29 22 9 28 . . 9 7 1 2 19 . 4 3 12 Successful 106 | . 15 . . 15 22 7 12 . . 4 5 1 2 19 . 2 1 1 Failed 61 | . 7 . . 14 . 2 16 . . 5 2 . . . . 2 2 11 Catastrophic 10 | . . . . 3 . . 2 . . . 2 . . . . . 1 2 Database Lockouts . | . . . . . . . . . . . . . . . . . . . Manual 86 | . 22 . . 23 . 7 15 . . 9 5 . . . . 3 . 2 Terminals 101 | . 20 . . 19 . 7 28 . . 9 5 . . . . 3 3 7 Fabricators 3 | . . . . . . 1 . . . . 2 . . . . . . . Repair Stations 6 | . . . . . . 1 . . . . . . . . . . . 5 Recycling Units 12 | . 2 . . 10 . . . . . . . . . . . . . . Scanalyzers . | . . . . . . . . . . . . . . . . . . . Garrison Access 1 | . . . . . . . . . . . . . . . . 1 . . Terminal Hacks 57 | . . . . 1 22 1 9 . . . 1 1 2 19 . . 1 . Record 40 | . . . . . 21 . . . . . . . 2 17 . . . . Part Schematic 1 | . . . . . . . 1 . . . . . . . . . . . Robot Schematic 1 | . . . . . . . 1 . . . . . . . . . . . Prototype ID Bank 1 | . . . . 1 . . . . . . . . . . . . . . Open Door 8 | . . . . . . 1 4 . . . . 1 . 2 . . . . Emergency Access Points 1 | . . . . . . . . . . . . . . . . . 1 . Terminal Index 1 | . . . . . . . . . . . 1 . . . . . . . Alert Level 1 | . . . . . . . 1 . . . . . . . . . . . Unreport Threat 2 | . . . . . . . 2 . . . . . . . . . . . Proto ID Catalog 1 | . . . . . 1 . . . . . . . . . . . . . Fabricator Hacks 3 | . . . . . . 1 . . . . 2 . . . . . . . Load Schematic 1 | . . . . . . . . . . . 1 . . . . . . . Build 2 | . . . . . . 1 . . . . 1 . . . . . . . Repair Station Hacks . | . . . . . . . . . . . . . . . . . . . Recycling Unit Hacks . | . . . . . . . . . . . . . . . . . . . Scanalyzer . | . . . . . . . . . . . . . . . . . . . Garrison Access Hacks 1 | . . . . . . . . . . . . . . . . 1 . . Unlock Access 1 | . . . . . . . . . . . . . . . . 1 . . Unauthorized Hacks 45 | . 15 . . 14 . 5 3 . . 4 2 . . . . 1 . 1 Terminals 36 | . 13 . . 8 . 4 3 . . 4 2 . . . . 1 . 1 Track 1 | . . . . . . . . . . . . . . . . . . 1 Assimilate 1 | . 1 . . . . . . . . . . . . . . . . . Botnet 15 | . 6 . . 3 . 2 3 . . . 1 . . . . . . . Skim 15 | . 6 . . 5 . 2 . . . . 1 . . . . 1 . . Sabotage 4 | . . . . . . . . . . 4 . . . . . . . . Fabricators . | . . . . . . . . . . . . . . . . . . . Repair Stations 1 | . . . . . . 1 . . . . . . . . . . . . Patch 1 | . . . . . . 1 . . . . . . . . . . . . Recycling Units 8 | . 2 . . 6 . . . . . . . . . . . . . . Tunnel 8 | . 2 . . 6 . . . . . . . . . . . . . . Scanalyzers . | . . . . . . . . . . . . . . . . . . . Garrison Access . | . . . . . . . . . . . . . . . . . . . Data Cores Recovered 1 | . . . . . . . 1 . . . . . . . . . . . Used . | . . . . . . . . . . . . . . . . . . . Hacking Detections 35 | . 6 . . 9 . 3 7 . . 2 2 . . . . 2 1 3 Full Trace Events 4 | . 1 . . . . . 1 . . . 1 . . . . . . 1 Feedback Events . | . . . . . . . . . . . . . . . . . . . Feedback Blocked . | . . . . . . . . . . . . . . . . . . . Robot Schematics Acquired 1 | . . . . . . . 1 . . . . . . . . . . . Robots Built . | . . . . . . . . . . . . . . . . . . . Authchips . | . . . . . . . . . . . . . . . . . . . Time 116 | . . . . . . . . . . . 116 . . . . . . . Total Robot Build Rating . | . . . . . . . . . . . . . . . . . . . Part Schematics Acquired 1 | . . . . . . . 1 . . . . . . . . . . . Parts Built 2 | . . . . . . 2 . . . . . . . . . . . . Authchips . | . . . . . . . . . . . . . . . . . . . Time 106 | . . . . . . 106 . . . . . . . . . . . . Total Part Build Rating 12 | . . . . . . 12 . . . . . . . . . . . . Parts Repaired . | . . . . . . . . . . . . . . . . . . . Time . | . . . . . . . . . . . . . . . . . . . Parts Recycled . | . . . . . . . . . . . . . . . . . . . Recycled Matter . | . . . . . . . . . . . . . . . . . . . Retrieved Matter . | . . . . . . . . . . . . . . . . . . . Retrieved Components . | . . . . . . . . . . . . . . . . . . . Parts Scanalyzed . | . . . . . . . . . . . . . . . . . . . Part Schematics Acquired . | . . . . . . . . . . . . . . . . . . . Parts Damaged . | . . . . . . . . . . . . . . . . . . . Bothacking | -11 -10 -10 -10 -9 -9 -6 -6 -6 -6 -6 -5 -5 -5 -5 -4 -4 -4 -4 ------------ Run | Yrd Mat Min Sub Rec Scr Fac Ext Cet Arc Hub Fac Upp Upp War Pro Fac Gar Fac Used RIF Installer . | . . . . . . . . . . . . . . . . . . . Robots Hacked 17 | . . . . 3 11 . 2 . . . . . . 1 . . . . Non-combat 8 | . . . . 3 3 . 2 . . . . . . . . . . . Combat 9 | . . . . . 8 . . . . . . . . 1 . . . . Robot Hacks Applied 19 | . . . . 4 11 . 3 . . . . . . 1 . . . . parse_system 13 | . . . . 1 11 . . . . . . . . 1 . . . . no_distress 4 | . . . . 1 . . 3 . . . . . . . . . . . find_recycling 2 | . . . . 2 . . . . . . . . . . . . . . Relay Couplers Released . | . . . . . . . . . . . . . . . . . . . Fabnet Peak Effective % . | . . . . . . . . . . . . . . . . . . . Robots Rewired 41 | . . . . 21 . . 15 . . . . . . 5 . . . . Allies Hacked 2 | . . . . . . 2 . . . . . . . . . . . . Hacks Repelled . | . . . . . . . . . . . . . . . . . . . Allies | -11 -10 -10 -10 -9 -9 -6 -6 -6 -6 -6 -5 -5 -5 -5 -4 -4 -4 -4 -------- Run | Yrd Mat Min Sub Rec Scr Fac Ext Cet Arc Hub Fac Upp Upp War Pro Fac Gar Fac Total Allies 47 | . 1 . . 21 . 1 19 . . . . . . 5 . . . . Largest Group 20 | . 1 . . 20 20 19 14 14 3 3 . . . 5 . . . . Highest-Rated Group 446 | . 10 . . 270 270 260 446 446 118 110 . . . 272 . . . . Highest-Rated Ally 64 | . 10 . . 27 27 54 54 48 48 43 . . . 64 . . . . Total Orders 7 | . . . . . 2 . . . . . . . . 5 . . . . STAY 7 | . . . . . 2 . . . . . . . . 5 . . . . Ally Attacks 309 | . . . . 22 . 79 93 55 17 38 . . . 5 . . . . Total Damage 5147 | . . . . 260 . 943 1849 1107 239 602 . . . 147 . . . . Kills 45 | . . . . 2 . 11 20 8 2 2 . . . . . . . . Allies Corrupted 2 | . . . . . . . 2 . . . . . . . . . . . Allies Melted . | . . . . . . . . . . . . . . . . . . . Intel | -11 -10 -10 -10 -9 -9 -6 -6 -6 -6 -6 -5 -5 -5 -5 -4 -4 -4 -4 ------- Run | Yrd Mat Min Sub Rec Scr Fac Ext Cet Arc Hub Fac Upp Upp War Pro Fac Gar Fac Active Infowar (turns) 7545 | 8 417 233 223 203 1402 629 828 432 721 380 555 204 164 526 160 130 50 280 A.S.S. 1536 | . . . . . . 602 828 106 . . . . . . . . . . Structural 6634 | . . 169 223 203 1402 629 828 432 721 380 555 204 164 526 160 38 . . Seismic 872 | 8 417 233 214 . . . . . . . . . . . . . . . Decoding 1329 | . . . . . . . . . . . . 19 164 526 160 130 50 280 Robot Analysis Total . | . . . . . . . . . . . . . . . . . . . Derelict Logs Recovered 5 | . . 2 . . . . . . . . . 1 2 . . . . . Drone Launches . | . . . . . . . . . . . . . . . . . . . Drone Recoveries . | . . . . . . . . . . . . . . . . . . . Decoded 0b10 Intel 10 | . . . . . . . . . . . . . . . . 2 3 5 Garrisons 2 | . . . . . . . . . . . . . . . . 1 . 1 Patrols 8 | . . . . . . . . . . . . . . . . 1 3 4 Exploration | -11 -10 -10 -10 -9 -9 -6 -6 -6 -6 -6 -5 -5 -5 -5 -4 -4 -4 -4 ------------- Run | Yrd Mat Min Sub Rec Scr Fac Ext Cet Arc Hub Fac Upp Upp War Pro Fac Gar Fac Turns Passed 8557 | 72 455 233 370 962 1404 629 828 432 721 380 555 206 164 526 160 130 50 280 Spaces Moved 7242 | 38 799 466 350 583 1254 454 441 121 152 177 269 291 212 758 212 132 107 426 Core 698 | 38 76 . . . . . . . . . . 116 24 . . 13 45 386 Treads 1245 | . . . 59 330 . . 159 121 152 177 247 . . . . . . . Legs 29 | . . . . . . . . . . . . . . . . . . 29 Wheels 2243 | . . . . 253 1254 454 282 . . . . . . . . . . . Hover 1319 | . . . . . . . . . . . 22 175 140 758 212 7 . 5 Flight 1708 | . 723 466 291 . . . . . . . . . 48 . . 112 62 6 Fastest Speed 26 | 50 37 37 37 80 85 97 105 160 160 160 60 50 32 60 60 26 26 29 Average Speed 85 | 56 38 37 73 130 105 103 131 167 160 160 151 56 61 60 60 35 36 54 Slowest Speed 400 | 100 100 37 260 260 115 130 400 240 160 160 160 150 115 60 60 115 50 150 Overloaded Moves . | . . . . . . . . . . . . . . . . . . . Propulsion Burnouts . | . . . . . . . . . . . . . . . . . . . Robots Hopped 13 | . 6 4 . . . . . . . . . . . . . 1 1 1 Potential Cave-ins 8 | . . . . . . . 8 . . . . . . . . . . . Cave-ins Triggered . | . . . . . . . . . . . . . . . . . . . Exploration Rate (%) 48 | 3 89 86 32 96 88 17 61 48 84 31 13 49 34 94 49 3 27 15 Regions Visited 18 Branch Regions 12 Pre-discovered Areas 12 | . 2 . . 6 4 . . . . . . . . . . . . . Known Exits Taken 12 | . 1 1 . 1 . 1 1 . . 1 1 1 1 1 1 1 . . Unknown Exits Taken 5 | 1 . . 1 . 1 . . 1 1 . . . . . . . . . Scrap Searched 8 | . . 1 . . 6 . . . . . . . 1 . . . . . Spaces Dug 44 | . 5 . . . . 4 21 . . 5 4 . . . 5 . . . Terrain Destroyed 318 | . 5 . 47 . . 9 45 . 6 147 45 2 . . 5 3 . 4 Melee 23 | . . . . . . 4 5 . . 5 4 . . . 5 . . . Projectile 101 | . 5 . . . . 2 21 . 6 17 41 2 . . . 3 . 4 AOE 191 | . . . 47 . . . 19 . . 125 . . . . . . . . Terrain Rammed . | . . . . . . . . . . . . . . . . . . . Walls Destroyed . | . . . . . . . . . . . . . . . . . . . Machines Disabled . | . . . . . . . . . . . . . . . . . . . Actions | -11 -10 -10 -10 -9 -9 -6 -6 -6 -6 -6 -5 -5 -5 -5 -4 -4 -4 -4 --------- Run | Yrd Mat Min Sub Rec Scr Fac Ext Cet Arc Hub Fac Upp Upp War Pro Fac Gar Fac Total 8918 | 64 902 505 433 732 1334 541 567 344 570 216 350 318 233 829 234 171 116 459 Wait 982 | 9 73 20 50 80 50 18 16 180 372 7 30 9 1 37 16 5 . 9 Move 7199 | 37 786 457 349 582 1253 453 440 120 151 176 268 290 211 757 211 130 104 424 Hop 13 | . 6 4 . . . . . . . . . . . . . 1 1 1 Pick Up 53 | . 5 2 2 1 11 8 5 9 4 . 4 1 1 . . . . . Fast Attach 71 | 5 3 2 1 5 1 2 6 5 2 2 5 8 6 1 . 6 . 11 Attach 30 | . 1 1 3 1 . 6 2 6 . 1 3 . 2 1 . 1 . 2 Detach 10 | 1 . . 1 . . . . 1 2 . 1 . 1 1 . . 1 1 Swap 54 | . 9 4 5 6 5 9 7 4 2 1 1 . . . 1 . . . Drop 61 | . 4 5 . 3 3 9 6 11 5 1 8 1 1 1 . . . 3 Fire 259 | 12 15 10 21 . . 30 51 8 32 19 25 9 10 1 . 7 1 8 Melee 139 | . . . . 53 11 5 31 . . 7 5 . . . 6 21 . . Ram 2 | . . . . . . . . . . . . . . . . . 2 . Kick . | . . . . . . . . . . . . . . . . . . . Crush 3 | . . . . 1 . . . . . 2 . . . . . . . . Escape Stasis 7 | . . . . . . . . . . . . . . . . . 7 . Rewire 31 | . . . . . . 1 . . . . . . . 30 . . . . Trap 3 | . . . . . . . 3 . . . . . . . . . . . Miscellaneous 1 | . . . 1 . . . . . . . . . . . . . . . Route ------- -11/Scrapyard -10/Materials (discovered 6 exits: *Mat x3 / *Min x2 / Sub) -10/Mines (discovered 2 exits: *Mat / *Sub) -10/Subcaves -9/Recycling (discovered 2 exits: [*Fac] / *Scr) -9/Scraptown (discovered 2 exits: *Fac x2) -6/Factory (discovered 5 exits: *Fac x2 / Low x2 / *Ext) -6/Extension (discovered 2 exits: *Fac / *Cet) -6/Cetus -6/Archives (discovered 3 exits: *Fac / *Hub x2) -6/Hub_04(d) -5/Factory (discovered 2 exits: *Upp x2) -5/Upper Caves -5/Upper Caves (discovered 2 exits: Fac / *War) -5/Warlord -4/Proximity Caves -4/Factory (discovered 3 exits: Res x2 / Gar) -4/Garrison -4/Factory History --------- Turn | Location | Event 14 | -11/Scrapyard | Discovered new exit (range 15) 73 | -11/Scrapyard | Entered Materials 149 | -10/Materials | Discovered new exit (range 5) 152 | -10/Materials | Discovered new exit (range 15) 213 | -10/Materials | Discovered new exit (range 10) 271 | -10/Materials | Discovered new exit (range 5) 326 | -10/Materials | Build established: Mutant 379 | -10/Materials | Identified exit to Subcaves 433 | -10/Materials | Identified exit to Materials 475 | -10/Materials | Learned Storage stockpile data 505 | -10/Materials | Loaded intel: 21 trap records 526 | -10/Materials | Learned location of 1 exit from Storage 527 | -10/Materials | Identified exit to Mines 528 | -10/Materials | Entered Mines 585 | -10/Mines | Received a Rocket Launcher from a helpful Derelict 589 | -10/Mines | Learned Materials terminal intel 759 | -10/Mines | Discovered exit to Subcaves (range 6) 761 | -10/Mines | Entered Subcaves 762 | -10/Subcaves | Approached by a straggling Scientist 771 | -10/Subcaves | A swath of the cavern ceiling suddenly collapsed 827 | -10/Subcaves | Shifting Twisted Machinery released Mak. Leg 874 | -10/Subcaves | Shifting Twisted Machinery released Piercing Trap 912 | -10/Subcaves | Ambushed by Subdwellers from Twisted Machinery 967 | -10/Subcaves | Lost 3 parts (1n2w) 980 | -10/Subcaves | Core integrity fell below 50% 988 | -10/Subcaves | Discovered new exit (range 15) 1006 | -10/Subcaves | Lost 4 parts (1p2n1u) 1131 | -10/Subcaves | Entered Recycling 1680 | -9/Recycling | Build established: Commander-Mutant 1734 | -9/Recycling | Learned Storage stockpile data 1800 | -9/Recycling | Identified exit to Scraptown 1857 | -9/Recycling | Learned 2 Materials zone layouts 1889 | -9/Recycling | Discovered new exit (range 16) 1945 | -9/Recycling | Learned Materials recycling unit intel 1976 | -9/Recycling | Learned Materials emergency access door positions 1991 | -9/Recycling | Scanned before Scraplab entrance 2014 | -9/Recycling | Entered Scraplab 2016 | -9/Recycling | Learned Storage emergency access door positions 2068 | -9/Recycling | Learned 2 Storage zone layouts 2093 | -9/Recycling | Entered Scraptown 2093 | -9/Scraptown | Accompanied by 20 allies 2274 | -9/Scraptown | Discovered new exit (range 11) 2322 | -9/Scraptown | Visited Junk Repository 2349 | -9/Scraptown | Visited TADAMA 2370 | -9/Scraptown | Visited The Evicted 2390 | -9/Scraptown | Visited Fellowship of the Rings 2416 | -9/Scraptown | Visited UFD Registry 2416 | -9/Scraptown | Registered with UFD as "Kineticase" 2576 | -9/Scraptown | Visited Comm Corps 2628 | -9/Scraptown | Visited Assassins FH 2645 | -9/Scraptown | Visited Cyclists 2654 | -9/Scraptown | Entered Cyclist Reading Room 2740 | -9/Scraptown | Visited Botcube Research 2750 | -9/Scraptown | Found Lrg. Botcube 2785 | -9/Scraptown | Visited Junk Repository 2840 | -9/Scraptown | Discovered new exit (range 3) 2929 | -9/Scraptown | Received an X-ray algorithm 2937 | -9/Scraptown | Visited Cartography Club 3034 | -9/Scraptown | Learned location of Zion (-6) 3034 | -9/Scraptown | Learned location of Warlord (-5) 3034 | -9/Scraptown | Learned location of Quarantine (-2) 3034 | -9/Scraptown | Learned 16 Materials zone layouts 3034 | -9/Scraptown | Learned 4 Storage zone layouts 3034 | -9/Scraptown | Learned 4 Recycling zone layouts 3034 | -9/Scraptown | Learned 8 Lower Caves zone layouts 3034 | -9/Scraptown | Learned 16 Lower Caves zone layouts 3034 | -9/Scraptown | Learned 20 Lower Caves zone layouts 3034 | -9/Scraptown | Learned 16 Upper Caves zone layouts 3034 | -9/Scraptown | Learned 8 Upper Caves zone layouts 3034 | -9/Scraptown | Learned 8 Proximity Caves zone layouts 3034 | -9/Scraptown | Learned 4 Armory zone layouts 3034 | -9/Scraptown | Learned Materials emergency access door positions 3034 | -9/Scraptown | Learned location of 1 exit from Factory 3034 | -9/Scraptown | Learned location of 2 exits from Proximity Caves 3115 | -9/Scraptown | Visited Supply Room 3133 | -9/Scraptown | Visited Science Guys 3279 | -9/Scraptown | Visited A0-MCA Data Center 3286 | -9/Scraptown | Given a C rating by A0-MCA 3288 | -9/Scraptown | Found A0-MCA's Component Scanner 3310 | -9/Scraptown | Visited DA-N13 Charitable Foundation 3321 | -9/Scraptown | Found DCF Scrap (28 items) 3360 | -9/Scraptown | Visited Infowarlord's Domain 3369 | -9/Scraptown | Found Active Sensor Suite 3436 | -9/Scraptown | Met Optimus 3436 | -9/Scraptown | Accepted into 0bPrime 3497 | -9/Scraptown | Entered Factory 3497 | -6/Factory | Accompanied by 19 allies 3497 | -6/Factory | Evolved 8 slots: Propulsion x2, Utility x4, Weapon x2 3498 | -6/Factory | Identified exit to Lower Caves 3499 | -6/Factory | Identified exit to Factory 3746 | -6/Factory | Discovered exit to Factory (range 6) 3834 | -6/Factory | Build established: Commander-Assassin 3851 | -6/Factory | P-60 Hacker assimilated allied Mercenary 2b 3858 | -6/Factory | P-60 Hacker assimilated allied Pest 2b 3866 | -6/Factory | Fabricated Arm. Medium Treads? 3917 | -6/Factory | Lost 8 allies 3930 | -6/Factory | Lrg. Botcube activated 3948 | -6/Factory | Lrg. Botcube completed mutation into legged form, armed with 2 guns. 4104 | -6/Factory | Discovered new exit (range 6) 4108 | -6/Factory | Identified exit to Extension 4126 | -6/Factory | Entered Extension 4126 | -6/Extension | Accompanied by 5 allies 4201 | -6/Extension | Rescued a captive Derelict 4201 | -6/Extension | Rescued a captive Derelict 4229 | -6/Extension | Rescued a captive Derelict 4229 | -6/Extension | Rescued a captive Derelict 4303 | -6/Extension | Rescued a captive Derelict 4384 | -6/Extension | Lost 3 allies 4510 | -6/Extension | Lost 5 allies 4806 | -6/Extension | Rescued a captive Derelict 4899 | -6/Extension | Discovered exit to Factory (range 10) 4901 | -6/Extension | Discovered new exit (range 6) 4951 | -6/Extension | Identified exit to Cetus 4954 | -6/Extension | Entered Cetus 4954 | -6/Cetus | Accompanied by 14 allies 4975 | -6/Cetus | Spotted Cetus Guard 4976 | -6/Cetus | Spotted Cetus Guard 4979 | -6/Cetus | Spotted Cetus Guard 4979 | -6/Cetus | Spotted Cetus Guard 4999 | -6/Cetus | Allies destroyed Cetus Guard 5005 | -6/Cetus | Allies destroyed Cetus Guard 5009 | -6/Cetus | Allies destroyed Cetus Guard 5009 | -6/Cetus | Destroyed Cetus Guard 5035 | -6/Cetus | Lost 4 parts (2n2w) 5044 | -6/Cetus | Lost 11 allies 5178 | -6/Cetus | Discovered new exit (range 15) 5320 | -6/Cetus | Build established: Scavenger-Tank 5386 | -6/Cetus | Entered Archives 5386 | -6/Archives | Accompanied by 3 allies 5453 | -6/Archives | Discovered exit to Factory (range 14) 5519 | -6/Archives | Discovered new exit (range 15) 5705 | -6/Archives | Discovered new exit (range 15) 6107 | -6/Archives | Entered Hub_04(d) 6107 | -6/Hub_04(d) | Accompanied by 3 allies 6369 | -6/Hub_04(d) | Network Hub disabled 6410 | -6/Hub_04(d) | Discovered exit to Factory (range 16) 6487 | -6/Hub_04(d) | Entered Factory 6487 | -5/Factory | Evolved 2 slots: Utility x2 6488 | -5/Factory | Identified exit to Upper Caves 6858 | -5/Factory | Fabricated M-28 Smith? 7009 | -5/Factory | Garrison activated, responded to threat 7042 | -5/Factory | Entered Upper Caves 7043 | -5/Upper Caves | Identified exit to Upper Caves 7074 | -5/Upper Caves | Learned Factory emergency access door positions 7126 | -5/Upper Caves | Encountered a Warlord checkpoint 7166 | -5/Upper Caves | P-70 Sage assimilated allied 87-66Y(M) 7203 | -5/Upper Caves | Lost 3 parts (1n1u1w) 7248 | -5/Upper Caves | Entered another Upper Caves area 7249 | -5/Upper Caves | Identified exit to Factory 7266 | -5/Upper Caves | Found Alien Artifact 7298 | -5/Upper Caves | Entered a destroyed Warlord outpost 7320 | -5/Upper Caves | Build established: Hacker-Mutant 7364 | -5/Upper Caves | Core integrity fell below 50% 7391 | -5/Upper Caves | Lost 4 parts (4n) 7394 | -5/Upper Caves | Learned Factory terminal intel 7398 | -5/Upper Caves | Discovered new exit (range 5) 7406 | -5/Upper Caves | Identified exit to Warlord 7412 | -5/Upper Caves | Entered Warlord 7439 | -5/Warlord | System corruption cleaned by Quarantine Array 7602 | -5/Warlord | Learned Testing stockpile data 7603 | -5/Warlord | Learned 4 Armory zone layouts 7603 | -5/Warlord | Learned 4 Armory zone layouts 7603 | -5/Warlord | Learned Research security intel 7603 | -5/Warlord | Learned Armory repair station intel 7603 | -5/Warlord | Learned Research terminal intel 7603 | -5/Warlord | Learned Research recycling unit intel 7805 | -5/Warlord | Visited the Vortex Lab 7812 | -5/Warlord | Found Prototype Energy Gun 7812 | -5/Warlord | Identified Vortex Rifle 7814 | -5/Warlord | Warlord's base attacked by MAIN.C 7839 | -5/Warlord | Rebuked by Warlord 7922 | -5/Warlord | Opened side exit 7934 | -5/Warlord | Discovered new exit (range 9) 7937 | -5/Warlord | Identified exit to Proximity Caves 7938 | -5/Warlord | Entered Proximity Caves 8052 | -4/Proximity Caves | Attracted the attention of an 0b10 checkpoint 8098 | -4/Proximity Caves | Entered Factory 8098 | -4/Factory | Evolved 2 slots: Propulsion x2 8099 | -4/Factory | Identified exit to Research 8101 | -4/Factory | Loaded intel: 26 terminal locations 8167 | -4/Factory | Lost 8 parts (1p4n3u) 8206 | -4/Factory | Garrison activated, responded to threat 8228 | -4/Factory | Identified exit to Garrison 8228 | -4/Factory | Entered Garrison 8242 | -4/Garrison | Spotted B-86 Titan 8248 | -4/Garrison | Triggered checkpoint 8260 | -4/Garrison | Core integrity fell below 50% 8274 | -4/Garrison | Discovered new exit (range 10) 8278 | -4/Garrison | Identified exit to Factory 8278 | -4/Garrison | Entered Factory 8301 | -4/Factory | Lost 7 parts (1p4n2u) 8308 | -4/Factory | Core integrity fell below 20% 8558 | -4/Factory | Destroyed by Y-64 Sentinel with Wave Gun Last Messages --------------- 08521_ K-01 Serf collects debris. 08529_ K-01 Serf cleans the Subcomponent Replicator. 08536_ K-01 Serf collects debris. 08538_ >> DECODED: Patrol location. 08548_ Slug penetrates Wall. 08550_ S-27 Virus suffers critical hit (Destroy). 08550_ S-27 Virus destroyed. 08551_ Penetrated by Slug. 08553_ Acquired VTOL Module. 08554_ Penetrated by Slug. 08554_ R-10 Processor collects Autogun. 08554_ Dropped Adv. KE Penetrator. 08555_ Acquired VTOL Module. 08557_ Fusion Modulator explodes. 08557_ S-27 Virus destroyed. 08557_ Myomer Leg destroyed. 08557_ Fusion Modulator explodes. 08557_ Adv. Weight Redist. System destroyed. Map ----- +----------------------------------------------------+ | ????? | | ????? | | ????? | | ????? """ | | ?????? """"" | | ?????? ####### # T##### """"" [#####+## | | ?????? ????????# ######## #??????? | | ???????????????# + ! # """ #??????? | | ???????????????+ ## # """"" #??????? | | ???????????????# ## # """"" #??????? | | ???????????????# ## / # ? #??????? | | ???????????????+ ## # ?? #??????? | | ???????????????######?#"""" # ##?#####??????? | | ??????????????????????#"""" ]# #?????????????? | | ??????????????????????#"""" # #?????????????? | | ??????????????????????#"""" + #?????????????? | | ??????????????????????#"""" # #?????????????? | | ?????????##############"""" # #?????????????? | | ?????????# #"""" # #?????????????? | | ?????????# "" # # #?????????????? | | ?????????# " " ;+###### g ######????????? | | ?????????# #^ #??????? | | ?????????# """ # Y #??????? | | ?????????# """"" /A ??????? | | ?????????+ """"" # g ??????? | | ?????????# # @ ??????? | | ?????????# """ / #####R ; ;;;#?????????? | | ?????????# """"" #??## % #?????????? | | ?????????# """"" #??#" ;#????????? | | ?????????# #??#" ;#????????? | | ?????????##+###########??#" #????????? | | ?????????????????????????#"! ??????? | | ?????????????????????????#" ??????? | | ?????????????????????????## " ???????? | | ??????????????????????????# " ???????? | | ??????????????????????????# " ???????? | | ??????????????????????????# " ????????? | | ??????????????????????????# " ????????? | | ??????????????????????????# "?????????? | | ??????????????????????????####""" """##?????????? | | ??????????????????????????????########???????????? | | ?????????????????????????????????????????????????? | | ?????????????????????????????????????????????????? | | | | | | | | | | | | | | | +----------------------------------------------------+ Best States ------------- Heat Dissipation 75 Energy Generation 25 Energy Capacity 350 Matter Stores 300 Matter Capacity 300 Sight Range 16 Robot Scan Range 20 Terrain Scan Density 10 Armor Coverage 800 Evasion (%) 64 Targeting Accuracy 6 Melee Accuracy 6 Target Analysis 6 Recoil Reduction 4 Force Boost 20 Offensive Hacking 24 Defensive Hacking 24 Item Schematics ----------------- Airjet | -6/Extension | Hacked Robot Schematics ------------------ M-28 Smith | -6/Extension | Hacked Fabricated ------------ Arm. Medium Treads | x2 | -6/Factory | Preloaded Repaired ---------- Nothing Alien Tech Used ----------------- None Achievements -------------- None Challenges ------------ None Game ------ Seed FieldthrustSpectralModule Manual? 0 Play Time 01:47:09 Cumulative 300.2 hours Start 2025.07.03 @ 15:04:58 End 2025.07.04 @ 11:58:26 Sessions 5 Manual Loads 0 Difficulty Rogue Special Mode None Game No. 146 Rogue 146 Adventurer 0 Explorer 0 Win Type - Total 20 Types 8/0/5/1/4/1/0/0/0/1 Lore% 87 Gallery% 75 Achievement% 73 Wizard Run 0 Options --------- Layout 1 ASCII 0 Keyboard 0 Movement Numpad Keybinds 0 Fullscreen 1 Font 24/Smallcaps Map View 50x35 Zoom Use 0% Tactical HUD 1 Map Filters NONE Filters NONE Steam 1 RUN: 64ccf901-085e-42c3-8e73-03871804b834